fUSD/lending_fUSD_20260107
["ID","MTS","AMOUNT","RATE_DAILY","PERIOD"]
[400731595,1767802242789,-500.0,0.00016227,2]
[400731596,1767802242799,-2000.0,0.00016227,2]
[400731597,1767802242810,-1500.0,0.00016227,2]
[400731598,1767802242821,-500.0,0.00016227,2]
[400731599,1767802242831,-1500.0,0.00016227,2]
[400731600,1767802242841,-500.0,0.00016227,2]
[400731601,1767802242852,-2000.0,0.00016227,2]
[400731602,1767802242863,-1500.0,0.00016227,2]
[400731603,1767802242873,-255.49772714,0.00016227,2]
[400731604,1767802242884,-2000.0,0.00016227,2]
[400731605,1767802242894,-1500.0,0.00016227,2]
[400731606,1767802242904,-2000.0,0.00016227,2]
[400731607,1767802242917,-1500.0,0.00016227,2]
[400731608,1767802242928,-448.72451731,0.00016227,2]
[400731609,1767802242938,-1500.0,0.00016227,2]
[400731610,1767802242949,-620.0,0.00016227,2]
[400731611,1767802242959,-500.0,0.00016227,2]
[400731612,1767802242971,-322.6107,0.00016227,2]
[400731613,1767802242982,-500.0,0.00016227,2]
[400731614,1767802242992,-500.0,0.00016227,2]
[400731615,1767802243002,-500.0,0.00016227,2]
[400731616,1767802243013,-500.0,0.00016227,2]
[400731617,1767802243024,-500.0,0.00016227,2]
[400731618,1767802243034,-500.0,0.00016227,2]
[400731619,1767802243044,-500.0,0.00016227,2]
[400731620,1767802243054,-500.0,0.00016227,2]
[400731621,1767802243063,-500.0,0.00016227,2]
[400731622,1767802243073,-500.0,0.00016227,2]
[400731623,1767802243082,-500.0,0.00016227,2]
[400731624,1767802243092,-500.0,0.00016227,2]
[400731625,1767802243102,-327.23086226,0.00016227,2]
[400731626,1767802243112,-500.0,0.00016227,2]
[400731627,1767802243125,-500.0,0.00016227,2]
[400731628,1767802243134,-500.0,0.00016227,2]
[400731629,1767802243145,-500.0,0.00016227,2]
[400731630,1767802243154,-500.0,0.00016227,2]
[400731631,1767802243164,-500.0,0.00016227,2]
[400731632,1767802243174,-578.20924308,0.00016227,2]
[400731634,1767802243183,-250.0,0.00016227,2]
[400731636,1767802243193,-250.0,0.00016227,2]
[400731637,1767802243203,-250.0,0.00016227,2]
[400731639,1767802243212,-250.0,0.00016227,2]
[400731641,1767802243223,-250.0,0.00016227,2]
[400731643,1767802243233,-250.0,0.00016227,2]
[400731645,1767802243242,-250.0,0.00016227,2]
[400731646,1767802243252,-250.0,0.00016227,2]
[400731647,1767802243261,-250.0,0.00016227,2]
[400731648,1767802243271,-250.0,0.00016227,2]
[400731649,1767802243281,-250.0,0.00016227,2]
[400731650,1767802243291,-21104.55232392,0.00016242,2]
[400731651,1767802243300,-28856.46065488,0.00016242,2]
[400731652,1767802243310,-500.0,0.00016307,2]
[400731653,1767802243320,-310.42839677,0.00016307,2]
[400731654,1767802243330,-326.06903764,0.00016338,2]
[400731655,1767802243339,-420.0,0.0001642,2]
[400731656,1767802243349,-500.0,0.00016437,2]
[400731657,1767802243359,-500.0,0.00016437,2]
[400731658,1767802243370,-574.78,0.00016437,2]
[400731659,1767802243380,-439.48231793,0.00016437,2]
[400731660,1767802243391,-500.0,0.00016437,2]
[400731661,1767802243401,-500.0,0.00016437,2]
[400731662,1767802243411,-450.7312017,0.00016437,2]
[400731663,1767802243421,-2009.89131785,0.00016438,2]
[400731664,1767802243431,-2009.89131785,0.00016438,2]
[400731665,1767802243442,-2009.89131785,0.00016438,2]
[400731666,1767802243452,-2009.89131785,0.00016438,2]
[400731667,1767802243461,-2009.89131785,0.00016438,2]
[400731668,1767802243472,-2009.89131785,0.00016438,2]
[400731669,1767802243486,-2009.89131785,0.00016438,2]
[400731670,1767802243496,-2009.89131785,0.00016438,2]
[400731671,1767802243514,-2009.89131785,0.00016438,2]
[400731672,1767802243526,-2009.89131785,0.00016438,2]
[400731673,1767802243537,-2009.89131785,0.00016438,2]
[400731674,1767802243547,-2009.89131785,0.00016438,2]
[400731675,1767802243562,-2009.89131785,0.00016438,2]
[400731676,1767802243573,-2009.89131785,0.00016438,2]
[400731677,1767802243584,-2009.89131785,0.00016438,2]
[400731678,1767802243596,-2009.89131785,0.00016438,2]
[400731679,1767802243606,-2009.89131785,0.00016438,2]
[400731680,1767802243616,-2009.89131785,0.00016438,2]
[400731681,1767802243627,-2009.89131785,0.00016438,2]
[400731682,1767802243637,-2009.89131785,0.00016438,2]
[400731683,1767802243647,-2009.89131785,0.00016438,2]
[400731684,1767802243657,-2009.89131785,0.00016438,2]
[400731685,1767802243668,-2009.89131785,0.00016438,2]
[400731686,1767802243679,-2009.89131785,0.00016438,2]
[400731687,1767802243689,-2009.89131785,0.00016438,2]
[400731688,1767802243699,-2009.89131785,0.00016438,2]
[400731689,1767802243709,-2009.89131785,0.00016438,2]
[400731690,1767802243720,-2009.89131785,0.00016438,2]
[400731691,1767802243730,-2009.89131785,0.00016438,2]
[400731692,1767802243741,-2009.89131785,0.00016438,2]
[400731693,1767802243751,-2009.89131785,0.00016438,2]
[400731694,1767802243761,-2009.89131785,0.00016438,2]
[400731695,1767802243771,-2009.89131785,0.00016438,2]
[400731696,1767802243781,-2009.89131785,0.00016438,2]
[400731697,1767802243791,-2009.89131785,0.00016438,2]
[400731698,1767802243801,-2009.89131785,0.00016438,2]
[400731699,1767802243810,-2009.89131785,0.00016438,2]
[400731700,1767802243820,-2009.89131785,0.00016438,2]
[400731701,1767802243830,-2009.89131785,0.00016438,2]
[400731702,1767802243840,-2009.89131785,0.00016438,2]
[400731703,1767802243850,-2009.89131785,0.00016438,2]
[400731704,1767802243860,-2009.89131785,0.00016438,2]
[400731705,1767802243870,-2009.89131785,0.00016438,2]
[400731706,1767802243880,-2009.89131785,0.00016438,2]
[400731707,1767802243889,-2009.89131785,0.00016438,2]
[400731708,1767802243899,-2009.89131785,0.00016438,2]
[400731709,1767802243910,-2009.89131785,0.00016438,2]
[400731710,1767802243920,-2009.89131785,0.00016438,2]
[400731711,1767802243930,-2009.89131785,0.00016438,2]
[400731712,1767802243940,-1999.31294249,0.00016438,2]
[400731713,1767802243950,-1999.31294249,0.00016438,2]
[400731714,1767802243960,-1999.31294249,0.00016438,2]
[400731715,1767802243971,-1999.31294249,0.00016438,2]
[400731716,1767802243982,-1999.31294249,0.00016438,2]
[400731717,1767802243992,-1999.31294249,0.00016438,2]
[400731718,1767802244002,-1999.31294249,0.00016438,2]
[400731719,1767802244012,-1999.31294249,0.00016438,2]
[400731720,1767802244021,-1999.31294249,0.00016438,2]
[400731721,1767802244032,-1999.31294249,0.00016438,2]
[400731722,1767802244041,-1999.31294249,0.00016438,2]
[400731723,1767802244458,-1999.31294249,0.00016438,2]
[400731724,1767802244468,-1999.31294249,0.00016438,2]
[400731725,1767802244479,-1999.31294249,0.00016438,2]
[400731726,1767802244491,-1999.31294249,0.00016438,2]
[400731727,1767802244500,-1999.31294249,0.00016438,2]
[400731728,1767802244509,-1999.31294249,0.00016438,2]
[400731729,1767802244519,-1999.31294249,0.00016438,2]
[400731730,1767802244529,-1999.31294249,0.00016438,2]
[400731731,1767802244539,-1999.31294249,0.00016438,2]
[400731732,1767802244548,-1999.31294249,0.00016438,2]
[400731733,1767802244559,-1999.31294249,0.00016438,2]
[400731734,1767802244569,-1999.31294249,0.00016438,2]
[400731735,1767802244578,-1999.31294249,0.00016438,2]
[400731736,1767802244587,-1999.31294249,0.00016438,2]
[400731737,1767802244597,-1999.31294249,0.00016438,2]
[400731738,1767802244606,-1999.31294249,0.00016438,2]
[400731739,1767802244616,-1979.31981307,0.00016438,2]
[400731740,1767802244625,-1979.31981307,0.00016438,2]
[400731741,1767802244635,-1979.31981307,0.00016438,2]
[400731742,1767802244644,-1979.31981307,0.00016438,2]
[400731743,1767802244654,-1979.31981307,0.00016438,2]
[400731744,1767802244664,-1979.31981307,0.00016438,2]
[400731745,1767802244674,-1979.31981307,0.00016438,2]
[400731746,1767802244684,-1979.31981307,0.00016438,2]
[400731747,1767802244694,-1979.31981307,0.00016438,2]
[400731748,1767802244704,-1979.31981305,0.00016438,2]
[400731749,1767802244714,-500.0,0.00016438,2]
[400731750,1767802244723,-800.0,0.00016438,2]
[400731751,1767802244732,-1626.81,0.00016442,2]
[400731752,1767802244742,-500.0,0.00016493,2]
[400731753,1767802244751,-195.0,0.00016503,2]
[400731755,1767802244762,-1680.0,0.00016504,2]
[400731756,1767802244772,-600.0,0.00016504,2]
[400731758,1767802244781,-600.0,0.00016504,2]
[400731760,1767802244791,-600.0,0.00016504,2]
[400731761,1767802244800,-600.0,0.00016504,2]
[400731762,1767802244809,-300.0,0.00016504,2]
[400731763,1767802244819,-250.0,0.00016504,2]
[400731764,1767802244828,-300.0,0.00016504,2]
[400731765,1767802244837,-300.0,0.00016514,2]
[400731766,1767802244846,-2500.0,0.00016514,2]
[400731767,1767802244855,-195.0,0.00016514,2]
[400731768,1767802244864,-300.0,0.00016514,2]
[400731769,1767802244873,-5000.0,0.00016514,2]
[400731770,1767802244883,-5000.0,0.00016514,2]
[400731771,1767802244892,-4685.70338709,0.00016514,2]
[400731772,1767802244902,-639.05245982,0.00016514,2]
[400731773,1767802244911,-250.0,0.00016514,2]
[400731774,1767802244921,-300.0,0.00016514,2]
[400731775,1767802244930,-2500.0,0.00016514,2]
[400731776,1767802244940,-193.0,0.00016514,2]
[400731777,1767802244949,-152.10889041,0.00016514,2]
[400731778,1767802244959,-1000.0,0.00016515,2]
[400731779,1767802244969,-500.0,0.00016548,2]
[400731780,1767802244978,-21104.55232392,0.00016574,2]
[400731781,1767802244988,-28856.46065488,0.00016574,2]
[400731782,1767802244998,-188.33554362,0.00016602,2]
[400731783,1767802245007,-1706.94994783,0.00016605,2]
[400731784,1767802245017,-326.06903764,0.00016619,2]
[400731785,1767802245027,-500.0,0.00016622,2]
[400731786,1767802245036,-182.6941269,0.00016643,2]
[400731787,1767802245045,-360.78764565,0.00016643,2]
[400731788,1767802245054,-500.0,0.00016643,2]
[400731789,1767802245064,-322.49416926,0.00016643,2]
[400731790,1767802245073,-378.44615396,0.00016643,2]
[400731791,1767802245083,-500.0,0.00016643,2]
[400731792,1767802245092,-500.0,0.00016643,2]
[400731793,1767802245101,-500.0,0.00016643,2]
[400731794,1767802245111,-500.0,0.00016643,2]
[400731795,1767802245120,-500.0,0.00016643,2]
[400731796,1767802245129,-500.0,0.00016643,2]
[400731797,1767802245138,-500.0,0.00016643,2]
[400731798,1767802245147,-628.50709886,0.00016643,2]
[400731799,1767802245156,-165.12,0.00016712,2]
[400731800,1767802245166,-1626.81,0.00016716,2]
[400731801,1767802245176,-2000.0,0.00016716,2]
[400731802,1767802245185,-2000.0,0.00016716,2]
[400731803,1767802245195,-2000.0,0.00016716,2]
[400731804,1767802245204,-2000.0,0.00016716,2]
[400731805,1767802245213,-2000.0,0.00016716,2]
[400731806,1767802245226,-1676.00349903,0.00016716,2]
[400731807,1767802245235,-2000.0,0.00016716,2]
[400731808,1767802245244,-2000.0,0.00016716,2]
[400731809,1767802245255,-2000.0,0.00016716,2]
[400731810,1767802245264,-595.37131296,0.00016775,2]
[400731811,1767802245274,-397.41223885,0.000169,2]
[400731812,1767802245283,-8433.0,0.00016905,2]
[400731813,1767802245292,-21104.55232392,0.00016905,2]
[400731814,1767802245301,-28856.46065488,0.00016905,2]
[400731815,1767802245310,-574.78,0.00016974,2]
[400731816,1767802245320,-1455.64956121,0.00016976,2]
[400731817,1767802245329,-600.0,0.00016978,2]
[400731818,1767802245338,-421114.83,0.00016986,2]
[400731819,1767802245348,-1626.81,0.0001699,2]
[400731820,1767802245357,-250.0,0.00017,2]
[400731821,1767802245368,-500.0,0.00017014,2]
[400731822,1767802245377,-1706.94994783,0.00017036,2]
[400731823,1767802245387,-500.0,0.00017041,2]
[400731824,1767802245396,-1000.0,0.00017112,2]
[400731825,1767802245405,-500.0,0.00017127,2]
[400731826,1767802245415,-500.0,0.00017127,2]
[400731827,1767802245424,-847.22084679,0.00017191,2]
[400731828,1767802245434,-503.18143071,0.00017191,2]
[400731829,1767802245444,-500.0,0.00017191,2]
[400731830,1767802245454,-21104.55232392,0.00017237,2]
[400731831,1767802245464,-28856.46065488,0.00017237,2]
[400731832,1767802245474,-500.0,0.0001726,3]
[400731833,1767802245489,-1626.81,0.00017264,2]
[400731834,1767802245498,-2500.0,0.00017264,2]
[400731835,1767802245510,-2500.0,0.00017264,2]
[400731836,1767802245520,-1037.00577444,0.00017264,2]
[400731837,1767802245530,-908.10299042,0.00017264,2]
[400731838,1767802245539,-1024.05521125,0.00017264,2]
[400731839,1767802245548,-2500.0,0.00017264,2]
[400731840,1767802245560,-2500.0,0.00017264,2]
[400731841,1767802245569,-2500.0,0.00017264,2]
[400731842,1767802245579,-617.40005154,0.00017323,2]
[400731843,1767802245589,-181.06,0.0001733,2]
[400731844,1767802245598,-866.0,0.00017345,2]
[400731845,1767802245607,-600.0,0.00017464,2]
[400731846,1767802245616,-1706.94994783,0.00017468,2]
[400731847,1767802245626,-2000.0,0.000175,2]
[400731848,1767802245636,-1040.82358149,0.00017534,2]
[400731849,1767802245646,-1626.81,0.00017538,2]
[400731850,1767802245656,-21104.55232392,0.00017568,2]
[400731851,1767802245665,-28856.46065488,0.00017568,2]
[400731852,1767802245675,-1688.95959214,0.00017583,2]
[400731853,1767802245685,-287.61899177,0.00017596,2]
[400731854,1767802245694,-642.94,0.00017596,2]
[400731855,1767802245704,-334.5472959,0.00017596,2]
[400731856,1767802245713,-780.0,0.00017613,2]
[400731857,1767802245723,-9228.55577035,0.0001764,2]
[400731858,1767802245733,-181.06,0.00017659,2]
[400731859,1767802245743,-780.0,0.00017682,2]
[400731860,1767802245753,-1000.0,0.000177,2]
[400731861,1767802245762,-1000.0,0.00017709,2]
[400731862,1767802245772,-300.0,0.00017724,2]
[400731863,1767802245781,-300.0,0.00017726,2]
[400731864,1767802245791,-300.0,0.00017726,2]
[400731865,1767802245800,-300.0,0.00017727,2]
[400731866,1767802245810,-300.0,0.00017728,2]
[400731867,1767802245819,-300.0,0.00017734,2]
[400731868,1767802245829,-300.0,0.00017737,2]
[400731869,1767802245838,-300.0,0.00017742,2]
[400731870,1767802245848,-300.0,0.00017746,2]
[400731871,1767802245857,-300.0,0.00017747,2]
[400731872,1767802245867,-150.0,0.00017748,2]
[400731873,1767802245877,-150.0,0.0001775,2]
[400731874,1767802245886,-300.0,0.00017755,2]
[400731875,1767802245896,-300.0,0.00017759,2]
[400731876,1767802245906,-300.0,0.00017763,2]
[400731877,1767802245917,-300.0,0.00017766,2]
[400731878,1767802245927,-300.0,0.00017766,2]
[400731879,1767802245936,-300.0,0.00017767,2]
[400731880,1767802245945,-300.0,0.00017768,2]
[400731881,1767802245954,-951.44310393,0.00017772,2]
[400731882,1767802245963,-300.0,0.00017775,2]
[400731883,1767802245975,-25000.0,0.00017777,3]
[400731884,1767802245984,-300.0,0.00017777,2]
[400731885,1767802245993,-25000.0,0.00017786,3]
[400731886,1767802246003,-300.0,0.00017789,2]
[400731887,1767802246013,-300.0,0.00017792,2]
[400731888,1767802246022,-300.0,0.00017793,2]
[400731889,1767802246032,-25000.0,0.00017794,3]
[400731890,1767802246043,-300.0,0.00017795,2]
[400731891,1767802246054,-300.0,0.00017795,2]
[400731892,1767802246065,-300.0,0.00017795,2]
[400731893,1767802246075,-300.0,0.00017795,2]
[400731894,1767802246084,-300.0,0.00017796,2]
[400731895,1767802246094,-300.0,0.00017796,2]
[400731896,1767802246105,-300.0,0.00017798,2]
[400731897,1767802246114,-300.0,0.00017799,2]
[400731898,1767802246124,-150.9974,0.000178,2]
[400731899,1767802246134,-1000.0,0.000178,2]
[400731900,1767802246145,-300.0,0.00017802,2]
[400731902,1767802246155,-300.0,0.00017803,2]
[400731904,1767802246167,-25000.0,0.00017803,3]
[400731905,1767802246176,-25000.0,0.00017812,3]
[400731906,1767802246186,-1626.81,0.00017812,2]
[400731907,1767802246196,-505.38555235,0.00017812,2]
[400731908,1767802246207,-3000.0,0.00017812,2]
[400731909,1767802246219,-511.91087313,0.00017812,2]
[400731910,1767802246229,-3000.0,0.00017812,2]
[400731911,1767802246240,-3000.0,0.00017812,2]
[400731912,1767802246250,-150.0,0.00017813,2]
[400731913,1767802246261,-300.0,0.00017815,2]
[400731914,1767802246271,-7335.52737,0.0001782,2]
[400731915,1767802246280,-7335.52737,0.0001782,2]
[400731916,1767802246290,-25000.0,0.00017821,3]
[400731917,1767802246301,-300.0,0.00017824,2]
[400731918,1767802246313,-300.0,0.00017825,2]
[400731919,1767802246324,-300.0,0.00017826,2]
[400731920,1767802246334,-25000.0,0.0001783,3]
[400731921,1767802246344,-261.94980575,0.0001783,2]
[400731922,1767802246354,-7335.52737,0.0001783,2]
[400731923,1767802246363,-300.0,0.00017833,2]
[400731924,1767802246373,-151.0,0.00017835,2]
[400731925,1767802246382,-951.44310391,0.00017836,2]
[400731926,1767802246392,-574.78,0.00017838,2]
[400731927,1767802246401,-25000.0,0.00017838,3]
[400731928,1767802246410,-300.0,0.00017845,2]
[400731929,1767802246419,-25000.0,0.00017847,3]
[400731930,1767802246429,-300.0,0.00017852,2]
[400731931,1767802246438,-300.0,0.00017853,2]
[400731932,1767802246448,-300.0,0.00017853,2]
[400731933,1767802246458,-300.0,0.00017854,2]
[400731934,1767802246467,-300.0,0.00017855,2]
[400731935,1767802246481,-200.0,0.00017855,2]
[400731936,1767802246490,-200.0,0.00017856,2]
[400731937,1767802246500,-25000.0,0.00017856,3]
[400731938,1767802246509,-200.0,0.00017856,2]
[400731939,1767802246519,-200.0,0.00017856,2]
[400731940,1767802246528,-300.0,0.0001786,2]
[400731941,1767802246538,-300.0,0.0001786,2]
[400731942,1767802246547,-7335.52738,0.0001786,2]
[400731943,1767802246557,-25000.0,0.00017865,3]
[400731944,1767802246566,-640.24385345,0.00017871,2]
[400731945,1767802246575,-25000.0,0.00017874,3]
[400731946,1767802246585,-300.0,0.00017874,2]
[400731947,1767802246594,-7335.52737,0.0001788,2]
[400731948,1767802246604,-25000.0,0.00017882,3]
[400731949,1767802246612,-25000.0,0.00017882,3]
[400731950,1767802246622,-150.0,0.00017885,2]
[400731951,1767802246632,-300.0,0.00017886,2]
[400731952,1767802246642,-300.0,0.00017888,2]
[400731953,1767802246652,-500.0,0.0001789,2]
[400731954,1767802246662,-461.49248906,0.0001789,2]
[400731955,1767802246671,-25000.0,0.00017891,3]
[400731956,1767802246681,-25000.0,0.00017891,3]
[400731957,1767802246691,-300.0,0.00017892,2]
[400731958,1767802246702,-300.0,0.00017893,2]
[400731959,1767802246712,-3170.6182961,0.00017893,2]
[400731960,1767802246722,-300.0,0.00017894,2]
[400731961,1767802246732,-3170.61829606,0.00017894,2]
[400731962,1767802246741,-3170.61829606,0.00017896,2]
[400731963,1767802246751,-3170.61829606,0.00017897,2]
[400731964,1767802246761,-300.0,0.00017898,2]
[400731965,1767802246770,-3170.61829606,0.00017899,2]
[400731966,1767802246779,-574.78,0.00017899,2]
[400731967,1767802246788,-500.0,0.00017899,2]
[400731968,1767802246797,-10000.0,0.000179,2]
[400731969,1767802246806,-1706.94994783,0.000179,2]
[400731970,1767802246815,-25000.0,0.000179,3]
[400731971,1767802246824,-25000.0,0.000179,3]
[400731972,1767802246833,-21104.55232392,0.000179,2]
[400731973,1767802246842,-28856.46065488,0.000179,2]
[400731974,1767802246852,-5658.07166192,0.000179,2]
[400731975,1767802246862,-3170.61829606,0.000179,2]
[400731976,1767802246871,-951.44310391,0.000179,2]
[400731977,1767802246880,-1000.0,0.000179,2]
[400731978,1767802246889,-673.22444108,0.000179,2]
[400731980,1767802246899,-978.5437153,0.000179,2]
[400731981,1767802246908,-300.0,0.00017907,2]
[400731982,1767802246917,-300.0,0.00017908,2]
[400731983,1767802246927,-4800.60780231,0.0001791,2]
[400731984,1767802246936,-7335.52737,0.0001791,2]
[400731985,1767802246946,-300.0,0.00017911,2]
[400731986,1767802246956,-300.0,0.00017916,2]
[400731987,1767802246965,-300.0,0.00017917,2]
[400731988,1767802246976,-300.0,0.00017918,2]
[400731989,1767802246985,-261.0,0.00017919,2]
[400731990,1767802246995,-150.0,0.00017923,2]
[400731991,1767802247005,-300.0,0.00017925,2]
[400731992,1767802247015,-300.0,0.00017926,2]
[400731993,1767802247024,-300.0,0.00017927,2]
[400731994,1767802247034,-300.0,0.00017929,2]
[400731995,1767802247043,-300.0,0.00017932,2]
[400731996,1767802247052,-300.0,0.00017933,2]
[400731997,1767802247061,-300.0,0.00017933,2]
[400731998,1767802247071,-300.0,0.0001794,2]
[400731999,1767802247080,-300.0,0.00017941,2]
[400732000,1767802247090,-300.0,0.00017945,2]
[400732001,1767802247099,-661.1,0.00017947,2]
[400732002,1767802247109,-300.0,0.00017949,2]
[400732003,1767802247119,-300.0,0.00017952,2]
[400732004,1767802247128,-300.0,0.00017953,2]
[400732005,1767802247138,-300.0,0.00017953,2]
[400732006,1767802247147,-300.0,0.00017953,2]
[400732007,1767802247157,-300.0,0.00017953,2]
[400732008,1767802247166,-300.0,0.00017957,2]
[400732009,1767802247176,-300.0,0.00017958,2]
[400732010,1767802247186,-419.4,0.00017961,2]
[400732011,1767802247195,-300.0,0.00017964,2]
[400732012,1767802247204,-300.0,0.00017969,2]
[400732013,1767802247214,-1000.0,0.0001797,2]
[400732014,1767802247223,-1000.0,0.0001797,2]
[400732015,1767802247232,-1109.90852601,0.0001797,2]
[400732016,1767802247242,-1000.0,0.0001797,2]
[400732017,1767802247251,-983.46328676,0.0001797,2]
[400732018,1767802247265,-587.0,0.00017971,2]
[400732019,1767802247274,-507.8387061,0.00017973,2]
[400732020,1767802247284,-419.4,0.00017974,2]
[400732021,1767802247293,-150.0,0.00017975,2]
[400732022,1767802247303,-300.0,0.00017976,2]
[400732023,1767802247312,-780.0,0.00017985,2]
[400732024,1767802247322,-150.0,0.00017985,2]
[400732025,1767802247332,-419.4,0.00017986,2]
[400732026,1767802247342,-300.0,0.00017987,2]
[400732027,1767802247352,-300.0,0.00017989,2]
[400732028,1767802247362,-1455.64956121,0.0001799,2]
[400732029,1767802247372,-1455.64956121,0.0001799,2]
[400732030,1767802247381,-300.0,0.00017991,2]
[400732031,1767802247391,-158.15067541,0.00017992,2]
[400732032,1767802247400,-1109.26559334,0.00017992,5]
[400732033,1767802247411,-1109.26559334,0.00017992,5]
[400732034,1767802247420,-500.0,0.00017992,2]
[400732035,1767802247429,-500.0,0.00017992,2]
[400732036,1767802247438,-300.0,0.00017992,2]
[400732037,1767802247448,-548094.8478023,0.00017993,2]
[400732038,1767802247458,-300.0,0.00017993,2]
[400732039,1767802247468,-300.0,0.00017996,2]
[400732040,1767802247479,-151.0,0.00017997,2]
[400732041,1767802247492,-652.54230562,0.00017999,2]
[400732042,1767802247503,-1109.26559334,0.00017999,5]
[400732043,1767802247513,-1109.26559336,0.00017999,5]
[400732044,1767802247524,-539.43776376,0.00017999,2]
[400732045,1767802247535,-500.0,0.00017999,2]
[400732046,1767802247544,-500.0,0.00017999,2]
[400732047,1767802247555,-500.0,0.00017999,2]
[400732048,1767802247564,-500.0,0.00017999,2]
[400732049,1767802247574,-500.0,0.00017999,2]
[400732050,1767802247583,-389.79829828,0.00017999,2]
[400732051,1767802247593,-300.0,0.00017999,2]
[400732052,1767802247603,-666.0,0.00017999,2]
[400732053,1767802247612,-300.0,0.00017999,2]
[400732054,1767802247622,-574.78,0.00017999,2]
[400732055,1767802247631,-574.78,0.00017999,2]
[400732056,1767802247641,-574.78,0.00017999,2]
[400732057,1767802247651,-574.78,0.00017999,2]
[400732058,1767802247666,-574.78,0.00017999,2]
[400732059,1767802247676,-574.78,0.00017999,2]
[400732060,1767802247687,-574.78,0.00017999,2]
[400732061,1767802247697,-574.78,0.00017999,2]
[400732062,1767802247707,-574.78,0.00017999,2]
[400732063,1767802247717,-574.78,0.00017999,2]
[400732064,1767802247727,-574.78,0.00017999,2]
[400732065,1767802247738,-574.78,0.00017999,2]
[400732066,1767802247748,-574.78,0.00017999,2]
[400732067,1767802247758,-574.78,0.00017999,2]
[400732068,1767802247767,-574.78,0.00017999,2]
[400732069,1767802247778,-574.78,0.00017999,2]
[400732070,1767802247787,-574.98652128,0.00017999,2]
[400732071,1767802247798,-500.0,0.00017999,2]
[400732072,1767802247807,-500.0,0.00017999,2]
[400732073,1767802247818,-500.0,0.00017999,2]
[400732074,1767802247827,-646.90584134,0.00017999,2]
[400732075,1767802247837,-300.0,0.00017999,2]
[400732076,1767802247847,-666.0,0.00017999,2]
[400732077,1767802247856,-300.0,0.00017999,2]
[400732078,1767802247866,-300.0,0.00017999,2]
[400732079,1767802247877,-300.0,0.00017999,2]
[400732080,1767802247886,-666.0,0.00017999,2]
[400732081,1767802247896,-300.0,0.00017999,2]
[400732082,1767802247907,-418917.62613402,0.00018,2]
[400732083,1767802247932,-4428966.98759039,0.00018,2]
[400732084,1767802247941,-717072.01486912,0.00018,2]
[400732085,1767802247951,-91859.65526375,0.00018,2]
[400732086,1767802247961,-549989.44612112,0.00018,2]
[400732087,1767802247974,-91455.10550929,0.00018,2]
[400732088,1767802247986,-3517.13058712,0.00018,2]
[400732089,1767802247997,-38582.58251488,0.00018,2]
[400732090,1767802248040,-93491.76871466,0.00018,2]
[400732091,1767802248052,-615.19451959,0.00018,2]
[400732092,1767802248064,-3557.83562371,0.00018,2]
[400732093,1767802248138,-1045.80767326,0.00018,2]
[400732094,1767802248151,-1709.25185107,0.00018,2]
[400732095,1767802248164,-2256.70555665,0.00018,2]
[400732096,1767802248177,-2256479.13597382,0.00018,2]
[400732098,1767802248219,-2282.94460336,0.00018,2]
[400732100,1767802248232,-1266.51684298,0.00018,2]
[400732102,1767802248245,-688.30896852,0.00018,2]
[400732318,1767802250398,-326.06903764,0.000169,2]
[400732320,1767802250408,-5895.01037065,0.00018,2]
[400732336,1767802250553,-1542.26069336,0.00018,2]
[400732338,1767802250565,-5013.38271455,0.00018,2]
[400732340,1767802250576,-88571.87015238,0.00018,2]
[400732342,1767802250587,-45939.90408802,0.00018,2]
[400732344,1767802250598,-591.07158026,0.00018,2]